[Event "Titled Tuesday Blitz November 15 Early 2022"]
[White "Kaminski, Victor"]
[Black "Stijve, Theo"]
[WhiteFideId "1131630"]
[BlackFideId "1331132"]
[WhiteElo "2181"]
[BlackElo "2256"]
[Result "0-1"]
[Round "09"]
[TimeControl "180+1"]
[Date "2022.11.16"]
[WhiteClock "0:00:01"]
[BlackClock "0:00:23"]

1. e4 {[%clk 0:03:00]}  c5 {[%clk 0:02:58]} 2. Nf3 {[%clk 0:03:00]}  a6 {[%clk 0:02:58]} 3. c4 {[%clk 0:02:59]}  e6 {[%clk 0:02:57]} 4. Nc3 {[%clk 0:02:59]}  Nc6 {[%clk 0:02:56]} 5. d4 {[%clk 0:02:59]}  cxd4 {[%clk 0:02:56]} 6. Nxd4 {[%clk 0:02:59]}  Qc7 {[%clk 0:02:49]} 7. Be2 {[%clk 0:02:51]}  Nf6 {[%clk 0:02:47]} 8. O-O {[%clk 0:02:45]}  h5 {[%clk 0:02:44]} 9. h3 {[%clk 0:02:37]}  b6 {[%clk 0:02:25]} 10. Be3 {[%clk 0:02:31]}  Bb7 {[%clk 0:02:23]} 11. Rc1 {[%clk 0:02:25]}  Rc8 {[%clk 0:02:18]} 12. Nd5 {[%clk 0:02:03]}  exd5 {[%clk 0:02:07]} 13. cxd5 {[%clk 0:02:02]}  Nxe4 {[%clk 0:01:45]} 14. dxc6 {[%clk 0:01:54]}  dxc6 {[%clk 0:01:44]} 15. Bf3 {[%clk 0:01:51]}  c5 {[%clk 0:01:34]} 16. Re1 {[%clk 0:01:25]}  Qd7 {[%clk 0:01:17]} 17. Bf4 {[%clk 0:01:12]}  Qxd4 {[%clk 0:01:08]} 18. Qxd4 {[%clk 0:01:08]}  cxd4 {[%clk 0:01:07]} 19. Rxe4+ {[%clk 0:00:39]}  Be7 {[%clk 0:00:46]} 20. Rxe7+ {[%clk 0:00:27]}  Kxe7 {[%clk 0:00:47]} 21. Re1+ {[%clk 0:00:27]}  Kd7 {[%clk 0:00:39]} 22. Bxb7 {[%clk 0:00:26]}  Rc2 {[%clk 0:00:29]} 23. Bxa6 {[%clk 0:00:25]}  Rxb2 {[%clk 0:00:29]} 24. a4 {[%clk 0:00:24]}  Re8 {[%clk 0:00:22]} 25. Bb5+ {[%clk 0:00:25]}  Rxb5 {[%clk 0:00:22]} 26. Rd1 {[%clk 0:00:15]}  Rd5 {[%clk 0:00:22]} 27. Rd3 {[%clk 0:00:12]}  Re1+ {[%clk 0:00:20]} 28. Kh2 {[%clk 0:00:12]}  Ra1 {[%clk 0:00:21]} 29. Kg3 {[%clk 0:00:09]}  Rxa4 {[%clk 0:00:21]} 30. Bd2 {[%clk 0:00:08]}  f6 {[%clk 0:00:21]} 31. Kf4 {[%clk 0:00:08]}  g5+ {[%clk 0:00:21]} 32. Ke4 {[%clk 0:00:09]}  Re5+ {[%clk 0:00:22]} 33. Kf3 {[%clk 0:00:08]}  Ke6 {[%clk 0:00:22]} 34. g4 {[%clk 0:00:08]}  h4 {[%clk 0:00:22]} 35. Rb3 {[%clk 0:00:06]}  b5 {[%clk 0:00:22]} 36. Bb4 {[%clk 0:00:03]}  Kd5 {[%clk 0:00:22]} 37. Rb2 {[%clk 0:00:02]}  Kc4 {[%clk 0:00:22]} 38. Bd2 {[%clk 0:00:02]}  Ra3+ {[%clk 0:00:22]} 39. Kg2 {[%clk 0:00:01]}  d3 {[%clk 0:00:22]} 40. Rb1 {[%clk 0:00:01]}  Rb3 {[%clk 0:00:22]} 41. Rc1+ {[%clk 0:00:01]}  Kd4 {[%clk 0:00:22]} 42. Rc8 {[%clk 0:00:02]}  b4 {[%clk 0:00:22]} 43. Rd8+ {[%clk 0:00:01]}  Ke4 {[%clk 0:00:23]} 0-1


[Site "https://www.chess.com"]

[Event "Titled Tuesday Blitz November 15 Early 2022"]
[White "Kamsky, Gata"]
[Black "Shipov, Sergei"]
[WhiteFideId "2000024"]
[BlackFideId "4113624"]
[WhiteElo "2666"]
[BlackElo "2781"]
[Result "0-1"]
[Round "09"]
[TimeControl "180+1"]
[Date "2022.11.15"]
[WhiteClock "0:00:01"]
[BlackClock "0:00:07"]

1. d4 {[%clk 0:03:00]}  d5 {[%clk 0:02:59]} 2. Bf4 {[%clk 0:02:59]}  Nf6 {[%clk 0:02:59]} 3. e3 {[%clk 0:02:58]}  c5 {[%clk 0:02:59]} 4. c3 {[%clk 0:02:58]}  Nc6 {[%clk 0:02:59]} 5. Nd2 {[%clk 0:02:58]}  e6 {[%clk 0:02:58]} 6. Ngf3 {[%clk 0:02:57]}  Nh5 {[%clk 0:02:58]} 7. Bg3 {[%clk 0:02:45]}  cxd4 {[%clk 0:02:45]} 8. exd4 {[%clk 0:02:41]}  Nxg3 {[%clk 0:02:38]} 9. hxg3 {[%clk 0:02:41]}  g6 {[%clk 0:02:39]} 10. Ne5 {[%clk 0:02:29]}  Bg7 {[%clk 0:02:33]} 11. f4 {[%clk 0:02:29]}  Qb6 {[%clk 0:02:30]} 12. Qb3 {[%clk 0:02:19]}  O-O {[%clk 0:02:26]} 13. Ndf3 {[%clk 0:02:13]}  f6 {[%clk 0:02:20]} 14. Nd3 {[%clk 0:02:11]}  Qc7 {[%clk 0:02:14]} 15. O-O-O {[%clk 0:01:58]}  Na5 {[%clk 0:02:06]} 16. Qc2 {[%clk 0:01:58]}  Nc4 {[%clk 0:02:05]} 17. Re1 {[%clk 0:01:54]}  b6 {[%clk 0:01:59]} 18. g4 {[%clk 0:01:53]}  Bd7 {[%clk 0:01:57]} 19. g3 {[%clk 0:01:53]}  Rac8 {[%clk 0:01:55]} 20. g5 {[%clk 0:01:53]}  Rf7 {[%clk 0:01:22]} 21. Bh3 {[%clk 0:01:43]}  f5 {[%clk 0:01:15]} 22. Bf1 {[%clk 0:01:43]}  Re7 {[%clk 0:01:04]} 23. Nfe5 {[%clk 0:01:18]}  Nd6 {[%clk 0:01:02]} 24. Nxd7 {[%clk 0:01:10]}  Qxd7 {[%clk 0:00:58]} 25. Ne5 {[%clk 0:00:56]}  Bxe5 {[%clk 0:00:58]} 26. Rxe5 {[%clk 0:00:56]}  Ne4 {[%clk 0:00:58]} 27. Rh3 {[%clk 0:00:47]}  Qd6 {[%clk 0:00:57]} 28. Ba6 {[%clk 0:00:41]}  Rxc3 {[%clk 0:00:30]} 29. bxc3 {[%clk 0:00:37]}  Qa3+ {[%clk 0:00:30]} 30. Kb1 {[%clk 0:00:20]}  Qxa6 {[%clk 0:00:26]} 31. Rh1 {[%clk 0:00:20]}  Qc4 {[%clk 0:00:24]} 32. Rc1 {[%clk 0:00:17]}  Kf7 {[%clk 0:00:22]} 33. Ka1 {[%clk 0:00:16]}  Rc7 {[%clk 0:00:21]} 34. Qh2 {[%clk 0:00:15]}  Kg8 {[%clk 0:00:16]} 35. Rxe6 {[%clk 0:00:15]}  Nxc3 {[%clk 0:00:15]} 36. Qd2 {[%clk 0:00:14]}  b5 {[%clk 0:00:14]} 37. Re8+ {[%clk 0:00:13]}  Kf7 {[%clk 0:00:14]} 38. Rh8 {[%clk 0:00:13]}  Kg7 {[%clk 0:00:13]} 39. Re8 {[%clk 0:00:13]}  b4 {[%clk 0:00:13]} 40. Qh2 {[%clk 0:00:09]}  Kf7 {[%clk 0:00:10]} 41. Rh8 {[%clk 0:00:09]}  Ke6 {[%clk 0:00:09]} 42. Re8+ {[%clk 0:00:07]}  Kd6 {[%clk 0:00:09]} 43. Qh6 {[%clk 0:00:04]}  Qxd4 {[%clk 0:00:08]} 44. Qf8+ {[%clk 0:00:04]}  Kc6 {[%clk 0:00:08]} 45. Qh8 {[%clk 0:00:04]}  Qxh8 {[%clk 0:00:07]} 46. Rxh8 {[%clk 0:00:04]}  d4 {[%clk 0:00:07]} 47. Rd8 {[%clk 0:00:02]}  Kc5 {[%clk 0:00:08]} 48. Kb2 {[%clk 0:00:02]}  Kc4 {[%clk 0:00:08]} 49. Re1 {[%clk 0:00:02]}  a5 {[%clk 0:00:08]} 50. Re6 {[%clk 0:00:01]}  a4 {[%clk 0:00:08]} 51. Red6 {[%clk 0:00:01]}  a3+ {[%clk 0:00:08]} 52. Kc2 {[%clk 0:00:01]}  Nxa2 {[%clk 0:00:07]} 0-1


[Site "https://www.chess.com"]

[Event "Titled Tuesday Blitz November 15 Early 2022"]
[White "Kopacz, Grzegorz"]
[Black "Calcada, Lucas Galvan"]
[WhiteFideId "1109880"]
[BlackFideId "22746099"]
[WhiteElo "2037"]
[BlackElo "1523"]
[Result "0-1"]
[Round "09"]
[TimeControl "180+1"]
[Date "2022.11.16"]
[WhiteClock "0:00:05"]
[BlackClock "0:00:13"]

1. d4 {[%clk 0:03:00]}  Nf6 {[%clk 0:02:55]} 2. c4 {[%clk 0:03:00]}  g6 {[%clk 0:02:55]} 3. Nc3 {[%clk 0:03:00]}  Bg7 {[%clk 0:02:55]} 4. e4 {[%clk 0:02:58]}  d6 {[%clk 0:02:54]} 5. Nf3 {[%clk 0:02:58]}  O-O {[%clk 0:02:54]} 6. Be2 {[%clk 0:02:54]}  e5 {[%clk 0:02:53]} 7. Be3 {[%clk 0:02:54]}  Nc6 {[%clk 0:02:52]} 8. d5 {[%clk 0:02:54]}  Ne7 {[%clk 0:02:51]} 9. O-O {[%clk 0:02:54]}  Nd7 {[%clk 0:02:52]} 10. Ne1 {[%clk 0:02:53]}  f5 {[%clk 0:02:53]} 11. f3 {[%clk 0:02:53]}  f4 {[%clk 0:02:53]} 12. Bf2 {[%clk 0:02:54]}  g5 {[%clk 0:02:53]} 13. b4 {[%clk 0:02:53]}  Ng6 {[%clk 0:02:53]} 14. c5 {[%clk 0:02:52]}  a6 {[%clk 0:02:46]} 15. Nd3 {[%clk 0:02:43]}  Nf6 {[%clk 0:02:45]} 16. cxd6 {[%clk 0:02:40]}  cxd6 {[%clk 0:02:45]} 17. b5 {[%clk 0:02:41]}  Rf7 {[%clk 0:02:41]} 18. bxa6 {[%clk 0:02:38]}  bxa6 {[%clk 0:02:42]} 19. Qb3 {[%clk 0:02:35]}  Bf8 {[%clk 0:02:41]} 20. Qb6 {[%clk 0:02:29]}  Qe8 {[%clk 0:02:34]} 21. Nb4 {[%clk 0:01:56]}  g4 {[%clk 0:02:29]} 22. Nc6 {[%clk 0:01:32]}  g3 {[%clk 0:02:25]} 23. hxg3 {[%clk 0:01:28]}  fxg3 {[%clk 0:02:24]} 24. Bxg3 {[%clk 0:01:26]}  Nh5 {[%clk 0:02:24]} 25. Bh2 {[%clk 0:01:24]}  Ngf4 {[%clk 0:02:19]} 26. Qd8 {[%clk 0:01:12]}  Qxd8 {[%clk 0:02:12]} 27. Nxd8 {[%clk 0:01:13]}  Rg7 {[%clk 0:02:11]} 28. g4 {[%clk 0:00:59]}  Bxg4 {[%clk 0:02:08]} 29. fxg4 {[%clk 0:00:53]}  Nxe2+ {[%clk 0:01:56]} 30. Nxe2 {[%clk 0:00:49]}  Rxg4+ {[%clk 0:01:55]} 31. Kf2 {[%clk 0:00:49]}  Rxd8 {[%clk 0:01:55]} 32. Rg1 {[%clk 0:00:48]}  Rg6 {[%clk 0:01:49]} 33. Rxg6+ {[%clk 0:00:45]}  hxg6 {[%clk 0:01:50]} 34. Rb1 {[%clk 0:00:44]}  Bh6 {[%clk 0:01:48]} 35. Rb6 {[%clk 0:00:39]}  Nf6 {[%clk 0:01:37]} 36. Ng3 {[%clk 0:00:22]}  Bf4 {[%clk 0:01:22]} 37. Rxa6 {[%clk 0:00:19]}  Bxg3+ {[%clk 0:01:15]} 38. Kxg3 {[%clk 0:00:19]}  Nxe4+ {[%clk 0:01:15]} 39. Kg4 {[%clk 0:00:20]}  Nc3 {[%clk 0:01:15]} 40. a4 {[%clk 0:00:16]}  Nxd5 {[%clk 0:01:13]} 41. a5 {[%clk 0:00:17]}  Ne7 {[%clk 0:01:06]} 42. Ra7 {[%clk 0:00:15]}  Kf7 {[%clk 0:01:03]} 43. Bg3 {[%clk 0:00:14]}  Ke6 {[%clk 0:01:02]} 44. Bh4 {[%clk 0:00:10]}  Nc6 {[%clk 0:00:56]} 45. Rc7 {[%clk 0:00:09]}  Ra8 {[%clk 0:00:52]} 46. Rxc6 {[%clk 0:00:09]}  Rxa5 {[%clk 0:00:52]} 47. Rc8 {[%clk 0:00:09]}  Ra4+ {[%clk 0:00:47]} 48. Kg3 {[%clk 0:00:10]}  d5 {[%clk 0:00:46]} 49. Bd8 {[%clk 0:00:11]}  Kf5 {[%clk 0:00:44]} 50. Bb6 {[%clk 0:00:10]}  Ra3+ {[%clk 0:00:44]} 51. Kf2 {[%clk 0:00:11]}  d4 {[%clk 0:00:41]} 52. Rf8+ {[%clk 0:00:11]}  Ke4 {[%clk 0:00:41]} 53. Bc5 {[%clk 0:00:12]}  Rc3 {[%clk 0:00:39]} 54. Bb4 {[%clk 0:00:11]}  Rb3 {[%clk 0:00:37]} 55. Bd2 {[%clk 0:00:11]}  Rb2 {[%clk 0:00:37]} 56. Ke1 {[%clk 0:00:10]}  Kd3 {[%clk 0:00:37]} 57. Bc1 {[%clk 0:00:09]}  Rh2 {[%clk 0:00:34]} 58. Rf3+ {[%clk 0:00:08]}  Ke4 {[%clk 0:00:33]} 59. Rg3 {[%clk 0:00:09]}  Kf5 {[%clk 0:00:18]} 60. Rg5+ {[%clk 0:00:09]}  Kf6 {[%clk 0:00:17]} 61. Rg1 {[%clk 0:00:09]}  e4 {[%clk 0:00:17]} 62. Bg5+ {[%clk 0:00:10]}  Kf5 {[%clk 0:00:16]} 63. Bd8 {[%clk 0:00:10]}  e3 {[%clk 0:00:15]} 64. Rg5+ {[%clk 0:00:09]}  Ke4 {[%clk 0:00:14]} 65. Bc7 {[%clk 0:00:05]}  Rh1+ {[%clk 0:00:12]} 66. Ke2 {[%clk 0:00:05]}  d3# {[%clk 0:00:13]} 0-1


[Site "https://www.chess.com"]

[Event "Titled Tuesday Blitz November 15 Early 2022"]
[White "Kopczynski, Michal"]
[Black "Hoffmann, Asa"]
[WhiteFideId "1124200"]
[BlackFideId "2001470"]
[WhiteElo "2235"]
[BlackElo "2117"]
[Result "1-0"]
[Round "09"]
[TimeControl "180+1"]
[Date "2022.11.16"]
[WhiteClock "0:01:02"]
[BlackClock "0:00:50"]

1. e4 {[%clk 0:03:00]}  d6 {[%clk 0:02:41]} 2. d4 {[%clk 0:03:01]}  Nf6 {[%clk 0:02:37]} 3. Nc3 {[%clk 0:03:01]}  c6 {[%clk 0:02:36]} 4. Bg5 {[%clk 0:03:01]}  Nbd7 {[%clk 0:02:32]} 5. Qd2 {[%clk 0:03:01]}  e5 {[%clk 0:02:32]} 6. dxe5 {[%clk 0:03:01]}  dxe5 {[%clk 0:02:32]} 7. O-O-O {[%clk 0:03:00]}  Bb4 {[%clk 0:02:31]} 8. a3 {[%clk 0:02:59]}  Bc5 {[%clk 0:02:25]} 9. f4 {[%clk 0:02:51]}  Qb6 {[%clk 0:02:19]} 10. fxe5 {[%clk 0:02:49]}  Nxe5 {[%clk 0:02:13]} 11. Na4 {[%clk 0:02:47]}  Bxg1 {[%clk 0:01:53]} 12. Nxb6 {[%clk 0:02:42]}  Bxb6 {[%clk 0:01:52]} 13. Bxf6 {[%clk 0:02:23]}  gxf6 {[%clk 0:01:51]} 14. Qd6 {[%clk 0:02:21]}  Be6 {[%clk 0:01:50]} 15. Be2 {[%clk 0:02:17]}  Rd8 {[%clk 0:01:49]} 16. Qb4 {[%clk 0:02:16]}  Rd7 {[%clk 0:01:40]} 17. Rxd7 {[%clk 0:02:15]}  Nxd7 {[%clk 0:01:35]} 18. Rd1 {[%clk 0:02:08]}  Ne5 {[%clk 0:01:32]} 19. Qd6 {[%clk 0:01:56]}  Nd7 {[%clk 0:01:27]} 20. Bc4 {[%clk 0:01:51]}  Bxc4 {[%clk 0:01:22]} 21. Qxd7+ {[%clk 0:01:51]}  Kf8 {[%clk 0:01:22]} 22. Qxb7 {[%clk 0:01:47]}  Be6 {[%clk 0:01:17]} 23. Rd6 {[%clk 0:01:26]}  Bc5 {[%clk 0:01:12]} 24. Rd8+ {[%clk 0:01:14]}  Kg7 {[%clk 0:01:10]} 25. Rxh8 {[%clk 0:01:14]}  Kxh8 {[%clk 0:01:10]} 26. Qxc6 {[%clk 0:01:14]}  Be3+ {[%clk 0:01:06]} 27. Kb1 {[%clk 0:01:14]}  Kg7 {[%clk 0:01:05]} 28. b4 {[%clk 0:01:13]}  Bf4 {[%clk 0:01:02]} 29. g3 {[%clk 0:01:12]}  Be5 {[%clk 0:01:02]} 30. a4 {[%clk 0:01:12]}  Bg4 {[%clk 0:00:57]} 31. b5 {[%clk 0:01:12]}  Bd4 {[%clk 0:00:56]} 32. a5 {[%clk 0:01:12]}  Bf3 {[%clk 0:00:55]} 33. b6 {[%clk 0:01:12]}  axb6 {[%clk 0:00:54]} 34. axb6 {[%clk 0:01:13]}  f5 {[%clk 0:00:54]} 35. b7 {[%clk 0:01:10]}  Bxe4 {[%clk 0:00:54]} 36. Qxe4 {[%clk 0:01:07]}  fxe4 {[%clk 0:00:53]} 37. b8=Q {[%clk 0:01:07]}  e3 {[%clk 0:00:53]} 38. Kc1 {[%clk 0:01:03]}  Be5 {[%clk 0:00:50]} 39. Qxe5+ {[%clk 0:01:02]} 1-0


[Site "https://www.chess.com"]

[Event "Titled Tuesday Blitz November 15 Early 2022"]
[White "Korchmar, Vasiliy"]
[Black "Przybylski, Wojciech"]
[WhiteFideId "24131750"]
[BlackFideId "1117599"]
[WhiteElo "2370"]
[BlackElo "2221"]
[Result "1-0"]
[Round "09"]
[TimeControl "180+1"]
[Date "2022.11.16"]
[WhiteClock "0:00:10"]
[BlackClock "0:00:04"]

1. e4 {[%clk 0:03:00]}  e5 {[%clk 0:02:52]} 2. Nf3 {[%clk 0:03:00]}  Nc6 {[%clk 0:02:51]} 3. Bc4 {[%clk 0:03:00]}  Nf6 {[%clk 0:02:49]} 4. d3 {[%clk 0:03:00]}  Be7 {[%clk 0:02:49]} 5. Nc3 {[%clk 0:02:59]}  O-O {[%clk 0:02:47]} 6. a4 {[%clk 0:02:59]}  a6 {[%clk 0:02:46]} 7. O-O {[%clk 0:02:59]}  d6 {[%clk 0:02:45]} 8. Re1 {[%clk 0:02:47]}  Be6 {[%clk 0:02:41]} 9. Nd5 {[%clk 0:02:46]}  Nb8 {[%clk 0:02:36]} 10. d4 {[%clk 0:02:41]}  Nbd7 {[%clk 0:02:30]} 11. h3 {[%clk 0:02:30]}  c6 {[%clk 0:02:24]} 12. Nxe7+ {[%clk 0:02:14]}  Qxe7 {[%clk 0:02:22]} 13. Bf1 {[%clk 0:02:12]}  exd4 {[%clk 0:02:11]} 14. Nxd4 {[%clk 0:02:05]}  Rfe8 {[%clk 0:02:07]} 15. Bg5 {[%clk 0:02:02]}  h6 {[%clk 0:02:05]} 16. Bh4 {[%clk 0:02:01]}  g5 {[%clk 0:01:01]} 17. Bg3 {[%clk 0:01:59]}  Ne5 {[%clk 0:01:01]} 18. f4 {[%clk 0:01:54]}  gxf4 {[%clk 0:00:59]} 19. Bxf4 {[%clk 0:01:55]}  Kh7 {[%clk 0:00:58]} 20. Kh1 {[%clk 0:01:13]}  Rg8 {[%clk 0:00:57]} 21. Qd2 {[%clk 0:01:04]}  Qf8 {[%clk 0:00:51]} 22. Rad1 {[%clk 0:00:58]}  Rd8 {[%clk 0:00:48]} 23. Qc3 {[%clk 0:00:34]}  Qe7 {[%clk 0:00:26]} 24. Nf5 {[%clk 0:00:30]}  Bxf5 {[%clk 0:00:25]} 25. exf5 {[%clk 0:00:31]}  Rde8 {[%clk 0:00:20]} 26. Rxd6 {[%clk 0:00:23]}  Qxd6 {[%clk 0:00:15]} 27. Bxe5 {[%clk 0:00:23]}  Qe7 {[%clk 0:00:15]} 28. Bd3 {[%clk 0:00:20]}  Rg5 {[%clk 0:00:07]} 29. Re2 {[%clk 0:00:20]}  Nd5 {[%clk 0:00:02]} 30. f6+ {[%clk 0:00:18]}  Kg8 {[%clk 0:00:01]} 31. Bh7+ {[%clk 0:00:11]}  Kxh7 {[%clk 0:00:01]} 32. Qd3+ {[%clk 0:00:11]}  Kg8 {[%clk 0:00:01]} 33. fxe7 {[%clk 0:00:12]}  Rxe7 {[%clk 0:00:02]} 34. Bd6 {[%clk 0:00:08]}  Rd7 {[%clk 0:00:02]} 35. Re8+ {[%clk 0:00:07]}  Kg7 {[%clk 0:00:02]} 36. Qd4+ {[%clk 0:00:07]}  f6 {[%clk 0:00:03]} 37. Bf4 {[%clk 0:00:05]}  Rg6 {[%clk 0:00:02]} 38. Bd2 {[%clk 0:00:04]}  Kf7 {[%clk 0:00:03]} 39. Rb8 {[%clk 0:00:03]}  Rg5 {[%clk 0:00:03]} 40. Bxg5 {[%clk 0:00:03]}  hxg5 {[%clk 0:00:04]} 41. Qe4 {[%clk 0:00:03]}  Re7 {[%clk 0:00:04]} 42. Qh7+ {[%clk 0:00:03]}  Ke6 {[%clk 0:00:05]} 43. Qg8+ {[%clk 0:00:04]}  Kd6 {[%clk 0:00:05]} 44. Rd8+ {[%clk 0:00:04]}  Kc7 {[%clk 0:00:05]} 45. Re8 {[%clk 0:00:04]}  Rd7 {[%clk 0:00:05]} 46. Re1 {[%clk 0:00:05]}  Nf4 {[%clk 0:00:05]} 47. Qh8 {[%clk 0:00:04]}  Nd5 {[%clk 0:00:05]} 48. Qh5 {[%clk 0:00:03]}  Nf4 {[%clk 0:00:05]} 49. Qf3 {[%clk 0:00:03]}  Rd6 {[%clk 0:00:05]} 50. Rf1 {[%clk 0:00:03]}  Ng6 {[%clk 0:00:05]} 51. Qg3 {[%clk 0:00:02]}  Ne5 {[%clk 0:00:05]} 52. Qf2 {[%clk 0:00:01]}  Ng6 {[%clk 0:00:05]} 53. Qf5 {[%clk 0:00:02]}  Nh4 {[%clk 0:00:05]} 54. Qh7+ {[%clk 0:00:02]}  Kb6 {[%clk 0:00:05]} 55. Qe4 {[%clk 0:00:03]}  Rd5 {[%clk 0:00:04]} 56. Qb4+ {[%clk 0:00:03]}  Kc7 {[%clk 0:00:04]} 57. Qc3 {[%clk 0:00:03]}  f5 {[%clk 0:00:04]} 58. Qg7+ {[%clk 0:00:03]}  Kb6 {[%clk 0:00:04]} 59. Qxg5 {[%clk 0:00:04]}  Rd4 {[%clk 0:00:05]} 60. c3 {[%clk 0:00:03]}  Re4 {[%clk 0:00:05]} 61. b3 {[%clk 0:00:03]}  a5 {[%clk 0:00:04]} 62. b4 {[%clk 0:00:03]}  axb4 {[%clk 0:00:04]} 63. cxb4 {[%clk 0:00:04]}  Rxb4 {[%clk 0:00:04]} 64. a5+ {[%clk 0:00:05]}  Ka6 {[%clk 0:00:04]} 65. Rxf5 {[%clk 0:00:05]}  Nxf5 {[%clk 0:00:04]} 66. Qxf5 {[%clk 0:00:06]}  Rb1+ {[%clk 0:00:04]} 67. Kh2 {[%clk 0:00:06]}  Rb5 {[%clk 0:00:04]} 68. Qf1 {[%clk 0:00:06]}  Kxa5 {[%clk 0:00:04]} 69. h4 {[%clk 0:00:07]}  c5 {[%clk 0:00:05]} 70. Qa1+ {[%clk 0:00:07]}  Kb6 {[%clk 0:00:04]} 71. h5 {[%clk 0:00:08]}  c4 {[%clk 0:00:05]} 72. Qf6+ {[%clk 0:00:07]}  Ka5 {[%clk 0:00:05]} 73. Qc3+ {[%clk 0:00:07]}  Kb6 {[%clk 0:00:05]} 74. Qxc4 {[%clk 0:00:07]}  Rxh5+ {[%clk 0:00:05]} 75. Kg1 {[%clk 0:00:08]}  Rc5 {[%clk 0:00:05]} 76. Qd4 {[%clk 0:00:08]}  Kc6 {[%clk 0:00:05]} 77. g4 {[%clk 0:00:09]}  b5 {[%clk 0:00:06]} 78. Qf6+ {[%clk 0:00:09]}  Kd5 {[%clk 0:00:04]} 79. g5 {[%clk 0:00:09]}  b4 {[%clk 0:00:04]} 80. g6 {[%clk 0:00:10]}  b3 {[%clk 0:00:03]} 81. g7 {[%clk 0:00:10]}  Rc1+ {[%clk 0:00:03]} 82. Kf2 {[%clk 0:00:10]}  Rc2+ {[%clk 0:00:03]} 83. Ke3 {[%clk 0:00:10]}  Rg2 {[%clk 0:00:03]} 84. Qf3+ {[%clk 0:00:10]}  Kc4 {[%clk 0:00:03]} 85. Qxg2 {[%clk 0:00:11]}  b2 {[%clk 0:00:04]} 86. g8=Q+ {[%clk 0:00:11]}  Kc3 {[%clk 0:00:04]} 87. Qc8+ {[%clk 0:00:11]}  Kb3 {[%clk 0:00:04]} 88. Qgc2+ {[%clk 0:00:11]}  Ka3 {[%clk 0:00:03]} 89. Qa6+ {[%clk 0:00:10]}  Kb4 {[%clk 0:00:04]} 90. Qb6+ {[%clk 0:00:10]}  Ka3 {[%clk 0:00:04]} 91. Qcb3# {[%clk 0:00:10]} 1-0


[Site "https://www.chess.com"]

[Event "Titled Tuesday Blitz November 15 Early 2022"]
[White "Kosteniuk, Alexandra"]
[Black "Makridis, Dimitrios"]
[WhiteFideId "4128125"]
[BlackFideId "25864475"]
[WhiteElo "2469"]
[BlackElo "2272"]
[Result "1-0"]
[Round "09"]
[TimeControl "180+1"]
[Date "2022.11.16"]
[WhiteClock "0:00:06"]
[BlackClock "0:00:10"]

1. e4 {[%clk 0:03:00]}  c5 {[%clk 0:03:00]} 2. c3 {[%clk 0:03:00]}  Nf6 {[%clk 0:02:59]} 3. e5 {[%clk 0:03:01]}  Nd5 {[%clk 0:03:00]} 4. Bc4 {[%clk 0:03:01]}  e6 {[%clk 0:03:00]} 5. d4 {[%clk 0:02:58]}  cxd4 {[%clk 0:02:58]} 6. cxd4 {[%clk 0:02:59]}  d6 {[%clk 0:02:58]} 7. Nf3 {[%clk 0:02:59]}  Nc6 {[%clk 0:02:57]} 8. O-O {[%clk 0:02:58]}  Be7 {[%clk 0:02:57]} 9. Qe2 {[%clk 0:02:58]}  O-O {[%clk 0:02:58]} 10. Rd1 {[%clk 0:02:57]}  Na5 {[%clk 0:02:57]} 11. Bd3 {[%clk 0:02:56]}  Nb4 {[%clk 0:02:55]} 12. Nc3 {[%clk 0:02:54]}  Nxd3 {[%clk 0:02:54]} 13. Rxd3 {[%clk 0:02:54]}  b6 {[%clk 0:02:53]} 14. b4 {[%clk 0:02:54]}  Nc6 {[%clk 0:02:53]} 15. b5 {[%clk 0:02:46]}  Nb4 {[%clk 0:02:51]} 16. Re3 {[%clk 0:02:43]}  Bb7 {[%clk 0:02:49]} 17. Ne4 {[%clk 0:02:12]}  dxe5 {[%clk 0:02:42]} 18. dxe5 {[%clk 0:02:07]}  Rc8 {[%clk 0:02:42]} 19. Rb3 {[%clk 0:01:56]}  Nc2 {[%clk 0:02:27]} 20. Rd3 {[%clk 0:01:55]}  Nxa1 {[%clk 0:02:21]} 21. Rxd8 {[%clk 0:01:54]}  Rfxd8 {[%clk 0:02:20]} 22. Bd2 {[%clk 0:01:54]}  Nc2 {[%clk 0:02:11]} 23. h4 {[%clk 0:01:49]}  Nd4 {[%clk 0:02:07]} 24. Nxd4 {[%clk 0:01:49]}  Rxd4 {[%clk 0:02:08]} 25. Ng5 {[%clk 0:01:31]}  Rc2 {[%clk 0:02:02]} 26. Qh5 {[%clk 0:01:31]}  Bxg5 {[%clk 0:02:00]} 27. Bxg5 {[%clk 0:01:31]}  h6 {[%clk 0:01:47]} 28. Be3 {[%clk 0:01:20]}  Re4 {[%clk 0:01:47]} 29. Qd1 {[%clk 0:01:14]}  Rxa2 {[%clk 0:01:38]} 30. Qd8+ {[%clk 0:01:07]}  Kh7 {[%clk 0:01:37]} 31. Qd3 {[%clk 0:01:05]}  Ra1+ {[%clk 0:00:59]} 32. Kh2 {[%clk 0:01:04]}  Re1 {[%clk 0:00:22]} 33. Bd2 {[%clk 0:00:28]}  Rd1 {[%clk 0:00:21]} 34. f3 {[%clk 0:00:26]}  Rxd2 {[%clk 0:00:20]} 35. Qxd2 {[%clk 0:00:26]}  Rxh4+ {[%clk 0:00:11]} 36. Kg3 {[%clk 0:00:26]}  Rh5 {[%clk 0:00:12]} 37. Qd7 {[%clk 0:00:21]}  Bd5 {[%clk 0:00:09]} 38. Qxf7 {[%clk 0:00:17]}  Rg5+ {[%clk 0:00:08]} 39. Kf2 {[%clk 0:00:16]}  Rxe5 {[%clk 0:00:08]} 40. Qxa7 {[%clk 0:00:16]}  Bc4 {[%clk 0:00:08]} 41. Qxb6 {[%clk 0:00:14]}  Bxb5 {[%clk 0:00:08]} 42. Qd4 {[%clk 0:00:14]}  Rg5 {[%clk 0:00:06]} 43. Qe4+ {[%clk 0:00:14]}  Rg6 {[%clk 0:00:06]} 44. Qe5 {[%clk 0:00:14]}  Bc4 {[%clk 0:00:06]} 45. g4 {[%clk 0:00:14]}  Bd5 {[%clk 0:00:07]} 46. Kg3 {[%clk 0:00:13]}  Rf6 {[%clk 0:00:07]} 47. f4 {[%clk 0:00:14]}  Kg8 {[%clk 0:00:07]} 48. Qb8+ {[%clk 0:00:12]}  Kh7 {[%clk 0:00:06]} 49. Qb1+ {[%clk 0:00:13]}  Kg8 {[%clk 0:00:06]} 50. Qb8+ {[%clk 0:00:12]}  Rf8 {[%clk 0:00:06]} 51. Qe5 {[%clk 0:00:12]}  Rf7 {[%clk 0:00:07]} 52. f5 {[%clk 0:00:12]}  Rf6 {[%clk 0:00:07]} 53. Qd6 {[%clk 0:00:11]}  Kh7 {[%clk 0:00:07]} 54. Qe5 {[%clk 0:00:11]}  Kg8 {[%clk 0:00:07]} 55. Qb8+ {[%clk 0:00:11]}  Kh7 {[%clk 0:00:07]} 56. Qd8 {[%clk 0:00:12]}  Bc4 {[%clk 0:00:07]} 57. Qd4 {[%clk 0:00:12]}  Bd5 {[%clk 0:00:07]} 58. Qd3 {[%clk 0:00:12]}  Kh8 {[%clk 0:00:07]} 59. Qd4 {[%clk 0:00:11]}  h5 {[%clk 0:00:06]} 60. gxh5 {[%clk 0:00:09]}  Rxf5 {[%clk 0:00:06]} 61. h6 {[%clk 0:00:09]}  Rg5+ {[%clk 0:00:07]} 62. Kh4 {[%clk 0:00:08]}  Rg6 {[%clk 0:00:08]} 63. hxg7+ {[%clk 0:00:08]}  Rxg7 {[%clk 0:00:08]} 64. Qf6 {[%clk 0:00:07]}  Kg8 {[%clk 0:00:09]} 65. Kh5 {[%clk 0:00:06]}  Rh7+ {[%clk 0:00:10]} 66. Kg5 {[%clk 0:00:06]}  Rg7+ {[%clk 0:00:09]} 67. Kh5 {[%clk 0:00:05]}  Rf7 {[%clk 0:00:09]} 68. Qd8+ {[%clk 0:00:05]}  Kg7 {[%clk 0:00:09]} 69. Kg5 {[%clk 0:00:06]}  Rf5+ {[%clk 0:00:09]} 70. Kh4 {[%clk 0:00:06]}  Kg6 {[%clk 0:00:09]} 71. Qg8+ {[%clk 0:00:06]}  Kf6 {[%clk 0:00:10]} 72. Qh8+ {[%clk 0:00:06]}  Ke7 {[%clk 0:00:10]} 73. Qb8 {[%clk 0:00:06]}  Kf6 {[%clk 0:00:10]} 74. Qh8+ {[%clk 0:00:06]}  Ke7 {[%clk 0:00:11]} 75. Qb8 {[%clk 0:00:06]}  Rf7 {[%clk 0:00:11]} 76. Qc7+ {[%clk 0:00:06]}  Kf8 {[%clk 0:00:11]} 77. Qd8+ {[%clk 0:00:06]}  Kg7 {[%clk 0:00:11]} 78. Qg5+ {[%clk 0:00:06]}  Kh8 {[%clk 0:00:11]} 79. Qd8+ {[%clk 0:00:06]}  Kh7 {[%clk 0:00:11]} 80. Kg4 {[%clk 0:00:06]}  Be4 {[%clk 0:00:11]} 81. Kg5 {[%clk 0:00:05]}  Rf5+ {[%clk 0:00:08]} 82. Kg4 {[%clk 0:00:05]}  Bf3+ {[%clk 0:00:09]} 83. Kg3 {[%clk 0:00:06]}  Bd5 {[%clk 0:00:10]} 84. Qe7+ {[%clk 0:00:06]}  Kh6 {[%clk 0:00:10]} 85. Qe8 {[%clk 0:00:06]} 1-0


[Site "https://www.chess.com"]